[Event "Marienbad A2-GM 2024"]
[Site "Marianske Lazne"]
[Date "2024.01.15"]
[Round "3.8"]
[White "Raczek, Krzysztof"]
[Black "Plat, Vojtech"]
[Result "0-1"]
[ECO "C41"]
[WhiteElo "2347"]
[BlackElo "2516"]
[Annotator "TA"]
[PlyCount "100"]
[EventDate "2024.01.10"]
[EventType "tourn"]
[EventCountry "CZE"]
[SourceTitle "playchess.com"]
[Source "ChessBase"]
[SourceQuality "1"]
[TimeControl "40/5400+30:1800+30"]

{[%evp 19,100,47,43,50,48,50,58,55,81,66,82,74,75,65,81,77,64,0,0,0,0,0,0,0,33,-15,-28,-85,-25,-31,0,-12,-10,-16,0,-60,-64,-147,0,0,0,0,0,0,0,0,0,0,0,0,0,0,0,0,0,-616,-575,-757,-757,-747,-704,-583,0,-558,-496,-12836,-12837,-12839,-12838,-12842,-12839,-12842,-12837,-12843,-12840,-12844,-12841,-12842,-12842,-12842,-12843,-12850,-27999]} 1. e4 {[%emt 0:00:03]} e5 {[%emt 0:00:25]} 2. Nf3 {[%emt 0:00:06]} d6 {[%emt 0:00:07]} 3. d4 {[%emt 0:00:06]} exd4 {[%emt 0:00:04]} 4. Nxd4 {[%emt 0:00:11]} Nf6 {[%emt 0:00:05]} 5. Nc3 {[%emt 0:00:05]} Be7 {[%emt 0:00:05]} 6. Bf4 {[%emt 0:00:04]} Nc6 {[%emt 0:00:17]} 7. Qd2 {[%emt 0:00:05]} O-O {[%emt 0:00:39]} 8. O-O-O {[%emt 0:00:04]} Nxd4 {[%emt 0:01:06]} 9. Qxd4 {[%emt 0:00:05]} Be6 {[%emt 0:00:05]} 10. f3 {[%emt 0:00:26]} a6 $1 {[%emt 0:05:45][%mdl 4] is now more promising than 10...Nd7.} 11. g4 {[%emt 0:01:04][%cal Bg2g4,Bg4g5][%mdl 32] C41: Philidor Defence.} b5 {[%emt 0:00:08]} 12. h4 {[%emt 0:02:04]} c5 {[%emt 0:01:14]} 13. Qe3 {[%emt 0:00:22][%cal Of4d6] [#] White is slightly better.} Re8 $146 {[%emt 0:02:40]} ({Predecessor:} 13... b4 14. Na4 Qa5 15. b3 Bd7 16. Bxd6 Bxd6 17. Rxd6 Bxa4 18. bxa4 Rfd8 19. Rxd8+ Rxd8 {0-1 Xiong,J (2690)-Bortnyk,O (2604) Titled Tuesday intern op 20th Sep Late blitz 2022 (7)}) 14. g5 {[%emt 0:02:14]} Nh5 {[%emt 0:00:34]} 15. Bh2 {[%emt 0:00:11]} Bf8 {[%emt 0:00:22]} 16. Be2 {[%emt 0:10:50]} g6 {[%emt 0:05:22]} 17. Nd5 {[%emt 0:23:21]} Bg7 {[%emt 0:10:01]} 18. Kb1 {[%emt 0:08:10]} (18. c3 $1 $14) 18... Bd4 $1 $11 {[%emt 0:05:24]} 19. Rxd4 {[%emt 0:01:23]} cxd4 {[%emt 0:00:02]} 20. Qxd4 {[%emt 0:00:02]} Bxd5 $1 {[%emt 0:00:17]} 21. Qxd5 {[%emt 0:00:10]} Qb6 {[%emt 0:00:05]} (21... Qd7 $5 {[%cal Rd7h3]}) 22. Bg1 {[%emt 0:22:45] Prevents Qf2.} (22. Qxd6 Qf2 23. Qd2 Qxh4 $11) (22. Bxd6 $2 Rad8 23. Rd1 Re6 $19) (22. Rf1 $14 {might be stronger.}) 22... Qc7 {[%emt 0:00:36]} 23. Be3 {[%emt 0:04:14] Repels Nf4} (23. Bh2 $11) 23... Rac8 {[%emt 0:04:00]} (23... Ng3 $17 24. Rh2 Nxe2 25. Rxe2 Qc8) 24. Bd3 {[%emt 0:01:10][%cal Be2d3,Bd3a6,Ba6c4,Bc4f7][%mdl 32]} Qc6 {[%emt 0:04:55]} 25. Qd4 {[%emt 0:01:44] Prevents Qxd5} Qc5 {[%emt 0:04:14]} 26. c3 {[%emt 0:03:56]} Qe5 {[%emt 0:01:42]} 27. Rd1 {[%emt 0:04:12]} (27. a4 $11) 27... Qg3 $1 $15 {[%emt 0:00:49][%csl LRf3,LRh4]} 28. a4 {[%emt 0:06:28]} (28. Rf1 $15) 28... bxa4 {[%emt 0:01:17]} (28... Qxf3 $17 29. Rf1 Qg4 30. axb5 axb5) 29. Bxa6 $11 {[%emt 0:00:34]} Rb8 {[%emt 0:00:32]} 30. Bc4 {[%emt 0:01:08]} (30. Be2 Nf4 31. Bxf4 Qxf4 $17) 30... a3 {[%emt 0:07:43] Some like it hot} (30... Qxf3 $5 31. Rf1 $8 Qxe4+ 32. Qxe4 Rxe4 33. Bxf7+ Kg7 34. Bd4+ Rxd4 35. cxd4 Ng3 $11) 31. b3 {[%emt 0:01:33]} Qxf3 $40 {[%emt 0:00:09][%mdl 128] White needs to defend precisely.} 32. Rf1 $1 {[%emt 0:00:42]} Qxe4+ {[%emt 0:02:23]} 33. Qxe4 {[%emt 0:00:36]} Rxe4 {[%emt 0:00:02]} 34. Bxf7+ {[%emt 0:00:15] This pair of bishops is nice.} Kg7 {[%emt 0:00:09]} 35. Bd4+ {[%emt 0:00:14]} Rxd4 {[%emt 0:00:03]} 36. cxd4 {[%emt 0:00:04][%mdl 4096] Endgame KRB-KRN} Ng3 {[%emt 0:00:29]} 37. Rg1 {[%emt 0:02:32][%mdl 8192] [#]} (37. Rf3 $11) 37... Ne2 $19 {[%emt 0:02:08]} 38. Re1 {[%emt 0:00:13]} Kxf7 {[%emt 0:01:52]} ({Worse is} 38... Nxd4 39. Bd5 $15) 39. Rxe2 {[%emt 0:00:01]} Rxb3+ {[%emt 0:00:08] KR-KR} 40. Ka1 {[%emt 0:00:46]} Rd3 $2 {[%emt 0:00:48]} (40... Rh3 $19 41. Re4 d5) 41. Re4 $2 {[%emt 0:33:31][%mdl 8192]} (41. Rc2 $1 $11 {and White has nothing to worry.}) 41... d5 {[%emt 0:32:21][%mdl 64] [#] Deflection. Black is clearly winning.} 42. Re5 {[%emt 0:00:31]} (42. Rg4 $142 Ke7 43. Rf4) 42... Rxd4 {[%emt 0:00:11]} 43. Ka2 {[%emt 0:00:15]} Rxh4 {[%emt 0:01:25]} 44. Rxd5 {[%emt 0:00:08]} Rh5 {[%emt 0:01:24]} 45. Rc5 {[%emt 0:01:19]} Rh3 {[%emt 0:00:56]} 46. Re5 {[%emt 0:01:49]} Rf3 {[%emt 0:00:19]} 47. Ra5 {[%emt 0:00:05]} Ke6 {[%emt 0:00:48]} 48. Ra7 {[%emt 0:00:08]} Kf5 {[%emt 0:00:48]} 49. Rf7+ {[%emt 0:00:06]} Kg4 {[%emt 0:00:03]} ({Inferior is} 49... Kxg5 50. Rxf3 h5 51. Kxa3 $11 (51. Rxa3 h4 $11)) 50. Rxh7 {[%emt 0:00:05]} Kxg5 {[%emt 0:00:02] An entertaining game by Plat.   Weighted Error Value: White=0.60/Black=0.19 (very precise)} 0-1

[Event "Marienbad A2-GM 2024"]
[Site "Marianske Lazne"]
[Date "2024.01.15"]
[Round "3.9"]
[White "Nguyen, Alex Dac-Vuong"]
[Black "Besou, Hussain"]
[Result "1-0"]
[ECO "A13"]
[WhiteElo "2347"]
[BlackElo "2277"]
[Annotator "ChessBase"]
[PlyCount "85"]
[EventDate "2024.01.10"]
[EventType "tourn"]
[EventCountry "CZE"]
[SourceTitle "playchess.com"]
[Source "ChessBase"]
[SourceQuality "1"]
[TimeControl "40/5400+30:1800+30"]

1. c4 {[%emt 0:00:12]} e6 {[%emt 0:00:08]} 2. g3 {[%emt 0:00:23]} d5 {[%emt 0:00:11]} 3. Bg2 {[%emt 0:00:18]} d4 {[%emt 0:00:11]} 4. Nf3 {[%emt 0:00:10]} c5 {[%emt 0:00:27]} 5. e3 {[%emt 0:00:33]} Nc6 {[%emt 0:00:10]} 6. O-O {[%emt 0:00:35]} Nf6 {[%emt 0:00:16]} 7. d3 {[%emt 0:00:30]} Bd6 {[%emt 0:02:36]} 8. Na3 {[%emt 0:04:50]} O-O {[%emt 0:01:57]} 9. exd4 {[%emt 0:13:49]} cxd4 {[%emt 0:00:25]} 10. Re1 {[%emt 0:00:07]} Re8 {[%emt 0:21:54]} 11. Nb5 {[%emt 0:04:40]} Bb8 {[%emt 0:02:01]} 12. c5 {[%emt 0:13:57]} h6 {[%emt 0:17:08]} 13. Nd2 {[%emt 0:15:52]} a6 {[%emt 0:12:03]} 14. Qa4 {[%emt 0:00:20]} Ne5 {[%emt 0:02:57]} 15. Qa3 {[%emt 0:04:47]} Nxd3 {[%emt 0:04:19]} 16. Qxd3 {[%emt 0:00:15]} axb5 {[%emt 0:00:04]} 17. Qxb5 {[%emt 0:00:40]} Ra7 {[%emt 0:06:40]} 18. Nc4 {[%emt 0:07:32]} Bc7 {[%emt 0:03:31]} 19. Ne5 {[%emt 0:04:27]} Nd7 {[%emt 0:04:30]} 20. Nd3 {[%emt 0:01:10]} b6 {[%emt 0:05:23]} 21. b4 {[%emt 0:08:59]} bxc5 {[%emt 0:01:33]} 22. Nxc5 {[%emt 0:01:54]} Nxc5 {[%emt 0:00:09]} 23. Qxc5 {[%emt 0:00:08]} Bb6 {[%emt 0:00:20]} 24. Qc4 {[%emt 0:02:44]} Rc7 {[%emt 0:02:52]} 25. Qb5 {[%emt 0:00:42]} Rc2 {[%emt 0:03:57]} 26. Be4 {[%emt 0:01:02]} Bd7 {[%emt 0:01:35]} 27. Qf1 {[%emt 0:01:59]} Rc8 28. a4 Qf6 {[%emt 0:04:46]} 29. a5 {[%emt 0:01:07]} Ba7 {[%emt 0:00:21]} 30. b5 {[%emt 0:01:47]} d3 {[%emt 0:00:34]} 31. Rb1 {[%emt 0:00:07]} Bd4 {[%emt 0:00:32]} 32. Bxd3 {[%emt 0:01:47]} Bc3 {[%emt 0:00:18]} 33. a6 {[%emt 0:00:24]} Bxe1 {[%emt 0:00:36]} 34. Qxe1 {[%emt 0:00:06]} Qd4 {[%emt 0:00:49]} 35. Bf1 {[%emt 0:00:46]} Rb8 {[%emt 0:00:37]} 36. Be3 {[%emt 0:00:19]} Qe4 {[%emt 0:00:28]} 37. Rb4 {[%emt 0:01:29]} Qe5 {[%emt 0:00:14]} 38. a7 {[%emt 0:02:07]} Rb7 {[%emt 0:00:57]} 39. Qb1 {[%emt 0:01:38]} Ra8 {[%emt 0:00:20]} 40. Bd4 {[%emt 0:04:55]} Qd6 {[%emt 0:01:19]} 41. Bg2 {[%emt 0:05:08]} Qc7 {[%emt 0:01:41]} 42. b6 {[%emt 0:01:16]} Qc8 {[%emt 0:00:11]} 43. Rc4 {[%emt 0:04:46]} 1-0

[Event "Marienbad A2-GM 2024"]
[Site "Marianske Lazne"]
[Date "2024.01.15"]
[Round "3.10"]
[White "Braeuer, Franz"]
[Black "Can, Isik"]
[Result "1/2-1/2"]
[ECO "B53"]
[WhiteElo "2428"]
[BlackElo "2500"]
[Annotator "TA"]
[PlyCount "38"]
[EventDate "2024.01.10"]
[EventType "tourn"]
[EventCountry "CZE"]
[SourceTitle "playchess.com"]
[Source "ChessBase"]
[SourceQuality "1"]
[TimeControl "40/5400+30:1800+30"]

{[%evp 9,38,14,17,10,15,14,13,0,6,0,20,0,14,-2,0,0,10,-39,-8,-16,52,44,154,151,150,141,146,139,145,76,164]} 1. e4 {[%emt 0:00:12]} c5 {[%emt 0:00:14]} 2. Nf3 {[%emt 0:00:06]} d6 {[%emt 0:00:04]} 3. d4 {[%emt 0:00:15]} cxd4 {[%emt 0:00:05]} 4. Qxd4 {[%emt 0:00:03]} Nc6 {[%emt 0:02:41]} 5. Qe3 {[%emt 0:00:14]} Nf6 {[%emt 0:01:41]} 6. Be2 {[%emt 0:00:29] B53: Sicilian: 2...d6: Lines with Qxd4.} g6 {[%emt 0:00:44]} 7. O-O {[%emt 0:00:55]} Bg7 {[%emt 0:07:18]} 8. h3 {[%emt 0:00:12] The position is equal.} O-O {[%emt 0:00:06]} 9. Rd1 {[%emt 0:02:28]} Be6 {[%emt 0:16:33] 9...Qb6 is a critical line.} 10. Nc3 {[%emt 0:02:34]} Rc8 {[%emt 0:11:15] [#]} 11. Bd2 $146 {[%emt 0:07:05]} ({Predecessor:} 11. a3 Qa5 12. Bd2 h6 13. Nb5 Qb6 14. Qxb6 axb6 15. Bd3 Nd7 16. Bc3 Nc5 17. Bxg7 Kxg7 {½-½ Svidler,P (2714)-Vitiugov,N (2724) FIDE World Cup 2021 (4.1)}) 11... a6 {[%emt 0:01:59]} 12. Be1 {[%emt 0:03:24]} Nd7 {[%emt 0:06:12]} 13. Rab1 {[%emt 0:33:21]} (13. Nd5 $11 {feels stronger.}) 13... Nb4 {[%emt 0:11:18]} (13... Qb6 $5 {[%cal Rb6e3]}) 14. Qd2 {[%emt 0:08:43]} Bxc3 {[%emt 0:14:47]} (14... Nxa2 15. Nd5 $14) (14... Bxa2 $2 15. Nxa2 Nxa2 16. Qd5 $16 (16. Ra1 Nc3 $14)) ({Black should try} 14... Bc4 $11) 15. bxc3 $14 {[%emt 0:00:04]} Nxa2 {[%emt 0:00:03]} (15... Nc6 $1 $14) 16. Qh6 $1 $16 {[%emt 0:12:06] Black must now prevent Ng5.} f6 {[%emt 0:01:14] [#] Prevents Ng5} (16... Nxc3 $2 17. Bxc3 Nf6 18. Ng5 Rxc3 19. e5 (19. Rxb7 Rc5 $11) 19... dxe5 20. Rxd8 (20. Rxb7 Bd5 $11) 20... Rxd8 21. Nxe6 fxe6 22. Rxb7 $18) 17. Nd4 $1 {[%emt 0:03:10][%mdl 1024] White has strong compensation.} Bf7 {[%emt 0:00:01]} 18. Bg4 {[%emt 0:06:34]} ({Of course not} 18. Rxb7 $6 Nc5 19. Rb2 e5 $14) 18... Nc5 {[%emt 0:02:16][%cal Od8e8] [#]} 19. Nf5 {[%emt 0:06:34] White has more active pieces.} Ne6 {[%emt 0:00:03] Weighted Error Value: White=0.13 (very precise) /Black=0.18 (very precise)} (19... gxf5 $16 {keeps fighting.} 20. Bxf5 Bg6) 1/2-1/2

[Event "Marienbad A2-GM 2024"]
[Site "Marianske Lazne"]
[Date "2024.01.16"]
[Round "4.6"]
[White "Morris, James"]
[Black "Can, Isik"]
[Result "1-0"]
[ECO "B47"]
[WhiteElo "2416"]
[BlackElo "2500"]
[Annotator "TA"]
[PlyCount "109"]
[EventDate "2024.01.10"]
[EventType "tourn"]
[EventCountry "CZE"]
[SourceTitle "playchess.com"]
[Source "ChessBase"]
[SourceQuality "1"]
[TimeControl "40/5400+30:1800+30"]

{[%evp 21,109,22,34,32,38,26,38,32,35,12,38,44,36,32,45,43,42,37,38,44,50,42,55,41,39,33,41,39,40,37,44,4,22,0,0,0,0,0,0,-32,-40,-36,-7,-14,-11,-10,0,-7,0,0,0,0,0,0,0,0,0,-167,0,0,0,0,208,94,538,524,496,465,410,412,773,771,749,725,729,706,838,802,1521,1353,1420,1445,1360,1225,1023,854,1051,1059,943,764]} 1. e4 {[%emt 0:04:10]} c5 {[%emt 0:02:32]} 2. Nf3 {[%emt 0:00:08]} e6 {[%emt 0:00:03]} 3. d4 {[%emt 0:00:27]} cxd4 {[%emt 0:00:05]} 4. Nxd4 {[%emt 0:00:05]} Nc6 {[%emt 0:00:04]} 5. Nc3 {[%emt 0:00:17]} Qc7 {[%emt 0:00:05]} 6. g3 {[%emt 0:01:26]} a6 {[%emt 0:00:19]} 7. Bg2 {[%emt 0:00:24]} d6 {[%emt 0:01:37]} 8. O-O {[%emt 0:02:55]} Bd7 {[%emt 0:01:10]} 9. Re1 {[%emt 0:02:06]} Be7 {[%emt 0:00:12]} 10. Nxc6 {[%emt 0:00:22]} Bxc6 {[%emt 0:00:46]} 11. Ne2 {[%emt 0:00:05]} Nf6 {[%emt 0:13:54]} 12. Nd4 {[%emt 0:00:04] B47: Sicilian: Taimanov: 5 Nc3 Qc7 6 f4, 6 g3 and 6 Be2.} Bd7 {[%emt 0:00:02]} 13. a4 {[%emt 0:07:06][%cal Ba2a4,Ba4a5][%mdl 32]} O-O {[%emt 0:07:02]} 14. a5 {[%emt 0:00:20] White is slightly better.} Rac8 {[%emt 0:06:25] [#]} 15. Be3 $146 {[%emt 0:14:21]} ({Predecessor:} 15. c3 Rfe8 16. Be3 Bd8 17. Nc2 h6 18. Bb6 Qb8 19. Bxd8 Rexd8 20. Nb4 e5 21. h3 {0-1 Sonntag,H (2372)-Ducarmon,Q (2479) BL2-West 1415 2014 (1.5)}) 15... g6 {[%emt 0:05:12]} 16. c3 {[%emt 0:00:51]} h5 {[%emt 0:00:47]} 17. h3 {[%emt 0:06:59] Against Ng4} e5 {[%emt 0:12:21]} 18. Nc2 {[%emt 0:00:40]} Be6 {[%emt 0:02:48]} 19. Nb4 {[%emt 0:01:20]} h4 {[%emt 0:01:37]} 20. g4 {[%emt 0:01:24]} Nh7 {[%emt 0:01:10]} 21. Qd2 {[%emt 0:01:47]} Qd8 {[%emt 0:03:45]} 22. f4 {[%emt 0:09:39]} exf4 {[%emt 0:06:26]} 23. Bb6 {[%emt 0:03:49]} Qd7 {[%emt 0:02:07]} 24. Qxf4 {[%emt 0:00:04]} Bf6 {[%emt 0:02:33][%cal Be7f6,Bf6e5,Be5g3][%mdl 32]} 25. Rad1 {[%emt 0:01:44]} Be5 {[%emt 0:01:21]} 26. Qe3 {[%emt 0:01:00]} (26. Qh6 {looks sharper.} Bb3 27. Rd2 Qe7 28. Nd5) 26... Qe7 {[%emt 0:02:58]} 27. Nd3 {[%emt 0:01:38]} Bg3 {[%emt 0:02:10]} 28. Bd4 {[%emt 0:01:04][%cal Oe3h6]} Qg5 {[%emt 0:05:57] Against Qh6} 29. Qxg5 {[%emt 0:02:09]} Nxg5 {[%emt 0:00:02]} 30. Re3 {[%emt 0:04:59]} Bb3 {[%emt 0:00:54]} 31. Ra1 {[%emt 0:03:57]} Bc4 {[%emt 0:05:42]} 32. Bf6 {[%emt 0:02:50]} (32. e5 $5 {[%cal Re5d6]}) 32... Nh7 {[%emt 0:01:15]} 33. Bd4 {[%emt 0:00:14]} Rfe8 {[%emt 0:01:21]} 34. Nb4 {[%emt 0:03:17]} Ng5 {[%emt 0:01:44]} 35. Nd5 {[%emt 0:01:59]} Bxd5 {[%emt 0:00:29]} 36. exd5 {[%emt 0:00:02]} f5 {[%emt 0:00:52]} 37. gxf5 {[%emt 0:00:19]} gxf5 {[%emt 0:00:01]} 38. Rf1 {[%emt 0:05:11]} f4 {[%emt 0:01:16]} 39. Rxg3 {[%emt 0:00:11]} hxg3 $2 {[%emt 0:10:11]} (39... fxg3 $19 40. Bf6 Nf7 41. Bxh4 Re2) 40. h4 $11 {[%emt 0:00:04]} f3 $1 {[%emt 0:00:31]} 41. hxg5 {[%emt 0:32:50]} fxg2 {[%emt 0:11:38] [#]} (41... f2+ $11 42. Kh1 Re1) 42. Kxg2 {[%emt 0:00:00][%mdl 4096] Endgame KRR-KRB} (42. Rf6 $1 $18 {[%cal Rf6h6]}) 42... Rf8 $2 {[%emt 0:04:19][%mdl 8192] A mistake that costs the game.} (42... Re4 $16 {is more resistant.}) 43. Rh1 $18 {[%emt 0:00:00] Intending g6 and mate.} Kf7 {[%emt 0:00:00]} 44. Kxg3 {[%emt 0:00:00] Hoping for Kg4.} Rce8 {[%emt 0:01:04]} 45. Kg4 {[%emt 0:00:00]} Re2 {[%emt 0:00:11]} (45... Re4+ $142 46. Kf3 Re7) 46. Rh7+ {[%emt 0:00:00] White is clearly winning.} Ke8 {[%emt 0:00:01]} 47. Rxb7 {[%emt 0:00:00]} Rg2+ {[%emt 0:02:29]} 48. Kh5 {[%emt 0:00:00]} Rf5 {[%emt 0:00:03]} 49. Bf6 {[%emt 0:00:00]} Rxd5 {[%emt 0:00:29]} 50. Re7+ {[%emt 0:00:00]} Kf8 {[%emt 0:00:01]} 51. Kg6 {[%emt 0:00:00] [#] Threatens to win with Re6.} Rb5 {[%emt 0:01:16]} 52. Rd7 {[%emt 0:00:00][%cal Rd7d8]} Re2 {[%emt 0:00:13]} 53. b4 {[%emt 0:00:00]} Re6 {[%emt 0:00:48]} 54. Ra7 {[%emt 0:00:00]} Ke8 {[%emt 0:00:18]} 55. Rxa6 {[%emt 0:00:00] Weighted Error Value: White=0.13 (very precise) /Black=0.34} 1-0

[Event "Marienbad A2-GM 2024"]
[Site "Marianske Lazne"]
[Date "2024.01.16"]
[Round "4.7"]
[White "Besou, Hussain"]
[Black "Braeuer, Franz"]
[Result "1/2-1/2"]
[ECO "C12"]
[WhiteElo "2277"]
[BlackElo "2428"]
[Annotator "TA"]
[PlyCount "24"]
[EventDate "2024.01.10"]
[EventType "tourn"]
[EventCountry "CZE"]
[SourceTitle "playchess.com"]
[Source "ChessBase"]
[SourceQuality "1"]
[TimeControl "40/5400+30:1800+30"]

{[%evp 14,24,0,5,32,25,72,58,85,41,76,61,76]} 1. e4 {[%emt 0:00:05]} e6 {[%emt 0:00:16]} 2. d4 {[%emt 0:00:08]} d5 {[%emt 0:00:03]} 3. Nc3 {[%emt 0:00:08]} Nf6 {[%emt 0:00:05]} 4. Bg5 {[%emt 0:00:09]} Bb4 {[%emt 0:00:22]} 5. e5 {[%emt 0:00:11]} h6 {[%emt 0:00:02]} 6. Bd2 {[%emt 0:00:09]} Bxc3 {[%emt 0:00:05]} 7. bxc3 {[%emt 0:00:05]} Ne4 {[%emt 0:00:03]} 8. Bc1 {[%emt 0:00:28]} c5 $1 {[%emt 0:19:58] The main line 8...c5 scores better than 8...Nxc3. C12: French: Classical System: McCutcheon Variation.} 9. Ne2 {[%emt 0:03:36]} cxd4 {[%emt 0:28:52]} ({Resist} 9... Qh4 10. g3 Qe7 11. f3 $14) (9... Qa5 $11) 10. cxd4 $16 {[%emt 0:00:43]} Qa5+ {[%emt 0:00:03] [#]} 11. c3 $1 {[%emt 0:01:01] [#]} b6 $146 {[%emt 0:02:14]} (11... Nxc3 $2 12. Qd2 $18) ({Predecessor:} 11... Nc6 12. f3 Nxc3 13. Qd2 Nxe2 14. Qxa5 Nxa5 15. Bxe2 Nc4 16. Rb1 b6 17. Rb4 Ba6 {0-1 Beerdsen,T (2486)-Terry,R (2504) Titled Tuesday intern op1 3rd March   blitz 2020 (4)}) 12. Bb2 {[%emt 0:20:18]} Ba6 {[%emt 0:02:38] White took control after the opening.   Weighted Error Value: White=0.00 (flawless) /Black=0.34} 1/2-1/2

[Event "Marienbad A2-GM 2024"]
[Site "Marianske Lazne"]
[Date "2024.01.16"]
[Round "4.8"]
[White "Plat, Vojtech"]
[Black "Nguyen, Alex Dac-Vuong"]
[Result "1/2-1/2"]
[ECO "C11"]
[WhiteElo "2516"]
[BlackElo "2347"]
[Annotator "TA"]
[PlyCount "71"]
[EventDate "2024.01.10"]
[EventType "tourn"]
[EventCountry "CZE"]
[SourceTitle "playchess.com"]
[Source "ChessBase"]
[SourceQuality "1"]
[TimeControl "40/5400+30:1800+30"]

{[%evp 19,71,40,34,14,46,50,79,81,108,100,112,112,108,112,112,114,112,112,112,112,112,105,102,108,107,102,130,118,120,115,102,109,102,116,133,152,146,72,83,83,87,11,18,0,0,0,0,0,0,0,0,0,0,-16]} 1. e4 {[%emt 0:04:46]} e6 {[%emt 0:00:06]} 2. d4 {[%emt 0:00:22]} d5 {[%emt 0:00:05]} 3. Nc3 {[%emt 0:00:13]} Nf6 {[%emt 0:00:13]} 4. Bg5 {[%emt 0:00:06]} dxe4 {[%emt 0:00:52]} 5. Nxe4 {[%emt 0:00:06]} Nbd7 {[%emt 0:00:41]} 6. Nf3 {[%emt 0:00:24]} Be7 {[%emt 0:03:02]} 7. Nxf6+ {[%emt 0:00:12]} Nxf6 {[%emt 0:01:54]} 8. Bd3 {[%emt 0:00:25]} c5 {[%emt 0:06:00]} 9. dxc5 {[%emt 0:06:16]} Qa5+ {[%emt 0:01:24]} 10. c3 {[%emt 0:00:12]} Qxc5 {[%emt 0:00:04]} 11. O-O {[%emt 0:00:20] C10: French with 3 Nc3: Unusual Black 3rd moves and 3...dxe4.} b6 {[%emt 0:02:12]} 12. Qe2 {[%emt 0:00:40]} Bb7 {[%emt 0:01:34]} 13. Bb5+ $1 {[%emt 0:03:16] White is better.} Bc6 {[%emt 0:09:36]} 14. Bxc6+ {[%emt 0:00:14]} Qxc6 {[%emt 0:00:08]} 15. Ne5 {[%emt 0:00:05] [#]} Qa4 $146 {[%emt 0:06:28]} ({Predecessor:} 15... Qc5 16. Rad1 O-O 17. Bxf6 Bxf6 18. Nd7 Qc7 19. Nxf8 Rxf8 20. Rd3 Be5 {1-0 Todortsev,V (1924)-Rakonitz,D (1377) San Francisco TNM Peter Grey op 2010 (2)}) 16. b3 {[%emt 0:01:15][%cal Bb2b3,Bb3b4][%mdl 32]} Qa5 {[%emt 0:00:21]} 17. b4 {[%emt 0:00:15]} Qa4 {[%emt 0:01:01]} 18. Qf3 $1 {[%emt 0:01:56]} O-O {[%emt 0:18:10] [#]} 19. Nc6 $1 {[%emt 0:00:05] White is much more active. The black rooks are badly placed.} Bd8 {[%emt 0:00:17]} (19... Bd6 $2 20. Bxf6 gxf6 21. Rad1 $18) 20. Nxd8 {[%emt 0:02:08][%mdl 64] Remove Defender} Rfxd8 {[%emt 0:00:54]} 21. Bxf6 {[%emt 0:00:12]} gxf6 {[%emt 0:00:04]} 22. Qxf6 {[%emt 0:00:06]} Rd5 {[%emt 0:06:50] Wards off Qg5+} 23. Rfe1 {[%emt 0:00:24][%cal Oe1e6]} Rad8 {[%emt 0:01:11]} 24. h4 {[%emt 0:00:59] aiming for Re4.} Qc2 {[%emt 0:06:36] Inhibits Re4.} 25. Re3 {[%emt 0:02:59]} Qf5 {[%emt 0:02:29] [#]} 26. Qh6 $1 {[%emt 0:02:24]} ({Resist} 26. Rg3+ Kf8 27. Qh6+ Ke7 $14) 26... Kh8 {[%emt 0:04:16]} 27. Rg3 {[%emt 0:05:54][%csl Gg3][%cal Rh6g7] Prevents Qg6.} Rg8 {[%emt 0:00:05] Repels Qg7+} 28. Re1 {[%emt 0:01:34]} ({White should try} 28. Rxg8+ Kxg8 29. c4) 28... Rxg3 $16 {[%emt 0:01:17]} 29. fxg3 {[%emt 0:00:01][%cal Rh6f8][%mdl 4096] Endgame KQR-KQR} Kg8 {[%emt 0:00:27] Dodges Qf8+} 30. Kh2 {[%emt 0:00:38]} ({White should play} 30. Rf1 $16 Qe5 31. Rf4) 30... Rd3 $1 $11 {[%emt 0:06:44] The position is equal.} 31. Re3 {[%emt 0:05:45]} Rd1 $1 {[%emt 0:00:09]} 32. Qf4 {[%emt 0:10:49]} Qxf4 {[%emt 0:01:36]} 33. gxf4 {[%emt 0:00:01][%cal Of4f5]} Ra1 {[%emt 0:02:22]} 34. Rg3+ {[%emt 0:01:26]} Kf8 {[%emt 0:00:10]} 35. h5 {[%emt 0:00:07]} h6 {[%emt 0:00:59]} 36. f5 {[%emt 0:01:15] Weighted Error Value: White=0.11 (very precise) /Black=0.06 (flawless)} 1/2-1/2